[Event "XX Gran Hotel Bali-A 2023"]
[Site "Benidorm"]
[Date "2023.12.04"]
[Round "4.4"]
[White "Moskalenko, Viktor"]
[Black "Madina Yadarola, Martin"]
[Result "1-0"]
[ECO "B24"]
[WhiteElo "2427"]
[BlackElo "2093"]
[Annotator "ChessBase"]
[PlyCount "111"]
[EventDate "2023.12.02"]
[EventType "swiss"]
[EventCountry "ESP"]
[SourceTitle "playchess.com"]
[Source "ChessBase"]
[SourceQuality "1"]
[TimeControl "5400+30"]

1. e4 {[%emt 0:02:19]} c5 {[%emt 0:00:07]} 2. Nc3 {[%emt 0:00:10]} a6 {[%emt 0:00:06]} 3. g3 {[%emt 0:00:32]} Nc6 {[%emt 0:00:49]} 4. Bg2 {[%emt 0:00:07]} g6 {[%emt 0:00:10]} 5. d3 {[%emt 0:00:15]} Bg7 {[%emt 0:00:37]} 6. f4 {[%emt 0:00:32]} d6 {[%emt 0:00:35]} 7. Nf3 {[%emt 0:00:20]} e6 {[%emt 0:00:18]} 8. Be3 {[%emt 0:03:53]} Nd4 {[%emt 0:00:45]} 9. e5 {[%emt 0:11:45]} dxe5 {[%emt 0:03:58]} 10. fxe5 {[%emt 0:01:01]} Ne7 {[%emt 0:05:02]} 11. Ne4 {[%emt 0:02:32]} O-O {[%emt 0:02:48]} 12. c3 {[%emt 0:40:30]} Nxf3+ {[%emt 0:03:29]} 13. Bxf3 {[%emt 0:00:19]} Bxe5 {[%emt 0:01:43]} 14. Nxc5 {[%emt 0:01:57]} Nd5 {[%emt 0:07:41]} 15. Bh6 {[%emt 0:09:02]} Bg7 {[%emt 0:02:37]} 16. Bxg7 {[%emt 0:00:46]} Kxg7 {[%emt 0:00:01]} 17. d4 {[%emt 0:00:44]} b6 {[%emt 0:03:14]} 18. Nd3 {[%emt 0:00:11]} Bb7 {[%emt 0:00:05]} 19. Qe2 {[%emt 0:00:44]} Qc7 {[%emt 0:04:53]} 20. O-O {[%emt 0:01:53]} a5 {[%emt 0:05:03]} 21. Qe5+ {[%emt 0:12:14]} Qxe5 {[%emt 0:09:25]} 22. Nxe5 {[%emt 0:00:02]} Ra7 {[%emt 0:03:10]} 23. Kf2 {[%emt 0:05:07]} Nf6 {[%emt 0:02:06]} 24. Bxb7 {[%emt 0:00:43]} Rxb7 {[%emt 0:00:02]} 25. Ke3 {[%emt 0:00:15]} Nd7 {[%emt 0:02:54]} 26. Nd3 {[%emt 0:00:40]} Rc7 {[%emt 0:01:12]} 27. a4 {[%emt 0:00:35]} Re8 {[%emt 0:00:52]} 28. Rfe1 {[%emt 0:00:54]} Nf6 {[%emt 0:02:24]} 29. Kd2 {[%emt 0:00:41]} Rd8 {[%emt 0:00:28]} 30. Re5 {[%emt 0:01:32]} Rd5 {[%emt 0:00:24]} 31. Rae1 {[%emt 0:00:11]} Rxe5 {[%emt 0:05:59]} 32. Rxe5 {[%emt 0:01:12]} Nd5 {[%emt 0:00:12]} 33. Nf4 {[%emt 0:00:28]} Rd7 {[%emt 0:00:53]} 34. Kd3 {[%emt 0:01:33]} Rd6 {[%emt 0:05:52]} 35. Nxd5 {[%emt 0:00:31]} exd5 {[%emt 0:05:18]} 36. b3 {[%emt 0:00:11]} Kf8 {[%emt 0:01:26]} 37. c4 {[%emt 0:00:09]} f6 {[%emt 0:00:12]} 38. Re2 {[%emt 0:01:55]} Kf7 {[%emt 0:01:14]} 39. cxd5 {[%emt 0:00:40]} Rxd5 {[%emt 0:00:21]} 40. Kc4 {[%emt 0:00:01]} Rd8 {[%emt 0:01:36]} 41. d5 {[%emt 0:00:37]} Rc8+ {[%emt 0:00:37]} 42. Kb5 {[%emt 0:00:46]} Rc5+ {[%emt 0:04:17]} 43. Kxb6 {[%emt 0:00:02]} Rxd5 {[%emt 0:00:06]} 44. b4 {[%emt 0:00:54]} axb4 {[%emt 0:00:07]} 45. a5 {[%emt 0:00:33]} b3 {[%emt 0:01:10]} 46. Rb2 {[%emt 0:00:13]} Ke6 {[%emt 0:07:32]} 47. Rxb3 {[%emt 0:00:06]} Rd6+ {[%emt 0:00:34]} 48. Kb7 {[%emt 0:00:54]} Rd7+ {[%emt 0:00:32]} 49. Kc6 {[%emt 0:00:19]} Rd6+ {[%emt 0:00:22]} 50. Kc7 {[%emt 0:01:08]} Rd7+ {[%emt 0:00:22]} 51. Kc8 {[%emt 0:00:23]} Ra7 {[%emt 0:01:03]} 52. Rb6+ {[%emt 0:00:22]} Ke5 {[%emt 0:00:08]} 53. a6 {[%emt 0:00:09]} f5 {[%emt 0:00:23]} 54. Kb8 {[%emt 0:00:04]} Rxa6 {[%emt 0:01:38]} 55. Rxa6 {[%emt 0:00:02]} g5 {[%emt 0:00:06]} 56. Rh6 {[%emt 0:00:26]} 1-0

[Event "XX Gran Hotel Bali-A 2023"]
[Site "Benidorm"]
[Date "2023.12.04"]
[Round "4.5"]
[White "Zanan, Evgeny"]
[Black "Ambartsumian, Tyhran"]
[Result "1-0"]
[ECO "D10"]
[WhiteElo "2486"]
[BlackElo "2138"]
[Annotator "RC"]
[PlyCount "47"]
[EventDate "2023.12.02"]
[EventType "swiss"]
[EventCountry "ESP"]
[SourceTitle "playchess.com"]
[Source "ChessBase"]
[SourceQuality "1"]
[TimeControl "5400+30"]

1. d4 {[%emt 0:01:41]} d5 {[%emt 0:04:49]} 2. c4 {[%emt 0:00:08]} c6 {[%emt 0:00:04]} 3. Nc3 {[%emt 0:00:10]} Nf6 {[%emt 0:00:08]} 4. e3 {[%emt 0:00:05]} Bf5 {[%emt 0:06:18]} 5. Qb3 {[%emt 0:09:40]} Qb6 {[%emt 0:04:49]} 6. cxd5 {[%emt 0:11:08]} Qxb3 {[%emt 0:10:43]} 7. axb3 {[%emt 0:00:14]} Nxd5 {[%emt 0:02:19]} 8. Nxd5 {[%emt 0:14:55]} cxd5 {[%emt 0:00:11]} 9. Bd2 {[%emt 0:00:02]} e6 {[%emt 0:05:36]} 10. Nf3 {[%emt 0:03:50]} Bd6 {[%emt 0:05:22]} 11. Nh4 {[%emt 0:02:42]} Bc2 {[%emt 0:04:45]} 12. Rc1 {[%emt 0:04:01]} Be7 {[%emt 0:04:52]} 13. Rxc2 {[%emt 0:03:12]} Bxh4 {[%emt 0:00:10]} 14. Rc8+ {[%emt 0:00:22]} Bd8 {[%emt 0:00:09]} 15. Bb5+ {[%emt 0:00:28]} Ke7 {[%emt 0:00:10]} 16. Bb4+ {[%emt 0:00:20]} Kf6 {[%emt 0:00:10]} 17. Ke2 {[%emt 0:00:20]} a6 {[%emt 0:05:21]} 18. Bd3 {[%emt 0:04:30]} Nc6 {[%emt 0:07:43]} 19. Rxa8 {[%emt 0:00:15]} Nxb4 {[%emt 0:00:05]} 20. Rc1 {[%emt 0:00:34]} Na2 {[%emt 0:01:49]} 21. Rcc8 {[%emt 0:00:52]} Ba5 {[%emt 0:00:09]} 22. Rxh8 {[%emt 0:00:19]} Nc1+ {[%emt 0:00:05]} 23. Kf1 {[%emt 0:00:15]} Nxd3 {[%emt 0:00:19]} 24. Rhb8 {[%emt 0:00:19]} 1-0

[Event "XX Gran Hotel Bali-A 2023"]
[Site "Benidorm"]
[Date "2023.12.04"]
[Round "4.6"]
[White "Decuigniere, Tom"]
[Black "Atienza Alvarez, Javier"]
[Result "1-0"]
[ECO "D11"]
[WhiteElo "2408"]
[BlackElo "2105"]
[Annotator "RC"]
[PlyCount "53"]
[EventDate "2023.12.02"]
[EventType "swiss"]
[EventCountry "ESP"]
[SourceTitle "playchess.com"]
[Source "ChessBase"]
[SourceQuality "1"]
[TimeControl "5400+30"]

1. d4 {[%emt 0:00:02]} Nf6 {[%emt 0:06:14]} 2. Nf3 {[%emt 0:00:17]} d5 {[%emt 0:01:16]} 3. g3 {[%emt 0:01:29]} Bf5 {[%emt 0:01:13]} 4. Bg2 {[%emt 0:00:38]} h6 {[%emt 0:00:49]} 5. c4 {[%emt 0:01:39]} c6 {[%emt 0:06:10]} 6. Nc3 {[%emt 0:01:04]} e6 {[%emt 0:00:46]} 7. Qb3 {[%emt 0:03:01]} Qb6 {[%emt 0:00:50]} 8. c5 {[%emt 0:00:05]} Qxb3 {[%emt 0:06:25]} 9. axb3 {[%emt 0:00:05]} Na6 {[%emt 0:00:05]} 10. Bf4 {[%emt 0:07:18]} Be7 {[%emt 0:11:08]} 11. Ne5 {[%emt 0:08:01]} g5 {[%emt 0:02:21]} 12. Bd2 {[%emt 0:00:35]} Nc7 {[%emt 0:05:04]} 13. f3 {[%emt 0:02:59]} a6 {[%emt 0:06:50]} 14. h4 {[%emt 0:05:15]} gxh4 {[%emt 0:04:38]} 15. g4 {[%emt 0:17:45]} Bc2 {[%emt 0:01:02]} 16. Bf4 {[%emt 0:00:10]} Nd7 {[%emt 0:04:33]} 17. Kd2 {[%emt 0:00:43]} Bxb3 {[%emt 0:00:41]} 18. Ra3 {[%emt 0:01:03]} Nxc5 {[%emt 0:15:15]} 19. dxc5 {[%emt 0:00:20]} Bxc5 {[%emt 0:00:09]} 20. Rxb3 {[%emt 0:00:10]} Nb5 {[%emt 0:00:06]} 21. Nxb5 {[%emt 0:01:16]} axb5 {[%emt 0:00:07]} 22. Rxh4 {[%emt 0:00:11]} Ra4 {[%emt 0:02:31]} 23. Rxh6 {[%emt 0:02:32]} Rxh6 {[%emt 0:04:05]} 24. Bxh6 {[%emt 0:00:03]} f6 {[%emt 0:00:07]} 25. Nd3 {[%emt 0:00:16]} Bd6 {[%emt 0:00:05]} 26. e4 {[%emt 0:02:44]} d4 {[%emt 0:02:12]} 27. Bg7 {[%emt 0:03:51]} 1-0

[Event "XX Gran Hotel Bali-A 2023"]
[Site "Benidorm"]
[Date "2023.12.04"]
[Round "4.7"]
[White "Davtyan, David Arm."]
[Black "Stewart, Ashley"]
[Result "1-0"]
[ECO "B27"]
[WhiteElo "2362"]
[BlackElo "2063"]
[Annotator "RC"]
[PlyCount "96"]
[EventDate "2023.12.02"]
[EventType "swiss"]
[EventCountry "ESP"]
[SourceTitle "playchess.com"]
[Source "ChessBase"]
[SourceQuality "1"]
[TimeControl "5400+30"]

1. Nc3 {[%emt 0:05:11]} c5 {[%emt 0:01:56]} 2. e4 {[%emt 0:00:53]} g6 {[%emt 0:00:06]} 3. d4 {[%emt 0:00:12]} cxd4 {[%emt 0:00:03]} 4. Qxd4 {[%emt 0:00:06]} Nf6 {[%emt 0:00:03]} 5. Nf3 {[%emt 0:00:05]} Nc6 {[%emt 0:00:27]} 6. Qa4 {[%emt 0:00:03]} d6 {[%emt 0:00:10]} 7. e5 {[%emt 0:00:07]} dxe5 {[%emt 0:00:04]} 8. Nxe5 {[%emt 0:00:05]} Bg7 {[%emt 0:00:06]} 9. Nxc6 {[%emt 0:10:07]} bxc6 {[%emt 0:00:02]} 10. Qxc6+ {[%emt 0:03:44]} Bd7 {[%emt 0:00:02]} 11. Qa6 {[%emt 0:00:35]} Qc7 {[%emt 0:04:46]} 12. Be2 {[%emt 0:05:11]} O-O {[%emt 0:03:05]} 13. Bf3 {[%emt 0:03:35]} Rab8 {[%emt 0:00:41]} 14. O-O {[%emt 0:01:56]} Ng4 {[%emt 0:16:30]} 15. Bxg4 {[%emt 0:06:08]} Bxg4 {[%emt 0:00:02]} 16. Qa3 {[%emt 0:07:17]} Rb7 {[%emt 0:10:22]} 17. Re1 {[%emt 0:06:40]} Be6 {[%emt 0:03:55]} 18. Re4 {[%emt 0:09:01]} Rd8 {[%emt 0:15:03]} 19. Bf4 {[%emt 0:03:24]} Qb6 {[%emt 0:04:41]} 20. Rb1 {[%emt 0:02:49]} Bf5 {[%emt 0:11:30]} 21. Re2 {[%emt 0:06:10]} Bg4 {[%emt 0:07:30]} 22. Ree1 {[%emt 0:04:26]} Bf5 {[%emt 0:01:59]} 23. Be3 {[%emt 0:03:28]} Qb4 {[%emt 0:05:31]} 24. Qxb4 {[%emt 0:08:51]} Rxb4 {[%emt 0:00:02]} 25. Red1 {[%emt 0:00:06]} Rxd1+ {[%emt 0:06:21]} 26. Nxd1 {[%emt 0:00:09]} h5 {[%emt 0:04:22]} 27. b3 {[%emt 0:01:11]} Bxc2 {[%emt 0:02:19]} 28. Rc1 {[%emt 0:00:01]} Bxd1 {[%emt 0:02:05]} 29. Rxd1 {[%emt 0:00:02]} a5 {[%emt 0:00:07]} 30. Rd8+ {[%emt 0:00:39]} Kh7 {[%emt 0:00:02]} 31. Ra8 {[%emt 0:00:05]} Rb5 {[%emt 0:01:12]} 32. Ra7 {[%emt 0:00:32]} Bf6 {[%emt 0:00:50]} 33. Kf1 {[%emt 0:00:01]} Kg7 {[%emt 0:00:19]} 34. Bd2 {[%emt 0:00:33]} Rd5 {[%emt 0:00:28]} 35. Bxa5 {[%emt 0:00:54]} Rd1+ {[%emt 0:00:06]} 36. Ke2 {[%emt 0:00:02]} Rb1 {[%emt 0:00:28]} 37. Bb6 {[%emt 0:00:02]} Rb2+ {[%emt 0:00:50]} 38. Kd3 {[%emt 0:00:22]} h4 {[%emt 0:00:42]} 39. h3 {[%emt 0:00:11]} e6 {[%emt 0:00:12]} 40. Bc5 {[%emt 0:01:07]} g5 {[%emt 0:00:22]} 41. b4 {[%emt 0:01:18]} Kg6 {[%emt 0:00:12]} 42. a4 {[%emt 0:00:26]} Be5 {[%emt 0:01:03]} 43. a5 {[%emt 0:00:22]} f5 {[%emt 0:00:34]} 44. Re7 {[%emt 0:00:40]} Kf6 {[%emt 0:00:36]} 45. a6 {[%emt 0:00:16]} g4 {[%emt 0:00:35]} 46. a7 {[%emt 0:00:06]} Ra2 {[%emt 0:00:05]} 47. Re8 {[%emt 0:00:07]} gxh3 {[%emt 0:00:51]} 48. gxh3 {[%emt 0:00:06]} Ra3+ {[%emt 0:01:13]} 1-0

[Event "XX Gran Hotel Bali-A 2023"]
[Site "Benidorm"]
[Date "2023.12.04"]
[Round "4.8"]
[White "Ereza Vizcarra, Fernando"]
[Black "Ingunza Curro, Andres"]
[Result "1-0"]
[ECO "A50"]
[WhiteElo "2116"]
[BlackElo "2328"]
[Annotator "RC"]
[PlyCount "69"]
[EventDate "2023.12.02"]
[EventType "swiss"]
[EventCountry "ESP"]
[SourceTitle "playchess.com"]
[Source "ChessBase"]
[SourceQuality "1"]
[TimeControl "5400+30"]

1. d4 {[%emt 0:00:02]} Nf6 {[%emt 0:03:32]} 2. Nf3 {[%emt 0:00:19]} b6 {[%emt 0:00:53]} 3. g3 {[%emt 0:01:51]} Bb7 {[%emt 0:00:05]} 4. Bg2 {[%emt 0:00:05]} g6 {[%emt 0:00:05]} 5. c4 {[%emt 0:03:20]} Bg7 {[%emt 0:00:05]} 6. O-O {[%emt 0:00:09]} O-O {[%emt 0:00:06]} 7. Nc3 {[%emt 0:08:36]} Ne4 {[%emt 0:00:59]} 8. Bd2 {[%emt 0:02:35]} e6 {[%emt 0:15:48]} 9. Qc2 {[%emt 0:12:06]} Nxd2 {[%emt 0:01:08]} 10. Qxd2 {[%emt 0:00:05]} d6 {[%emt 0:00:54]} 11. d5 {[%emt 0:04:13]} e5 {[%emt 0:20:19]} 12. e4 {[%emt 0:06:35]} a5 {[%emt 0:01:01]} 13. Ne1 {[%emt 0:00:45]} f5 {[%emt 0:00:29]} 14. exf5 {[%emt 0:21:14]} gxf5 {[%emt 0:00:55]} 15. f4 {[%emt 0:00:14]} Nd7 {[%emt 0:20:17]} 16. Nf3 {[%emt 0:03:34]} Nc5 {[%emt 0:08:20]} 17. fxe5 {[%emt 0:09:46]} dxe5 {[%emt 0:02:29]} 18. Rae1 {[%emt 0:00:07]} Qe7 {[%emt 0:12:06]} 19. Nd4 {[%emt 0:05:01]} Qd7 {[%emt 0:00:25]} 20. Nf3 {[%emt 0:02:58]} e4 {[%emt 0:02:35]} 21. Nh4 {[%emt 0:01:52]} Nd3 {[%emt 0:00:52]} 22. Re2 {[%emt 0:01:33]} Ne5 {[%emt 0:01:38]} 23. Qg5 {[%emt 0:03:53]} h6 {[%emt 0:05:51]} 24. Qh5 {[%emt 0:02:02]} Rf6 {[%emt 0:00:54]} 25. Rxf5 {[%emt 0:02:45]} Nxc4 {[%emt 0:00:25]} 26. Bxe4 {[%emt 0:03:14]} Qd6 {[%emt 0:00:31]} 27. Rxf6 {[%emt 0:01:24]} Qxf6 {[%emt 0:00:01]} 28. Rf2 {[%emt 0:00:53]} Qg5 {[%emt 0:00:34]} 29. Qf7+ {[%emt 0:00:16]} Kh8 {[%emt 0:00:01]} 30. Ng6+ {[%emt 0:00:20]} Kh7 {[%emt 0:00:01]} 31. Nf4+ {[%emt 0:02:52]} Kh8 {[%emt 0:00:05]} 32. Qxc7 {[%emt 0:00:12]} Ba6 {[%emt 0:01:07]} 33. Ng6+ {[%emt 0:00:06]} Kh7 {[%emt 0:01:37]} 34. Ne5+ {[%emt 0:00:37]} Kh8 {[%emt 0:00:04]} 35. Nf7+ {[%emt 0:00:04]} 1-0

[Event "XX Gran Hotel Bali-A 2023"]
[Site "Benidorm"]
[Date "2023.12.04"]
[Round "4.9"]
[White "Garcia Ramos, Marcos"]
[Black "Moreno Estebanez, Patxi"]
[Result "0-1"]
[ECO "A24"]
[WhiteElo "2102"]
[BlackElo "2278"]
[Annotator "RC"]
[PlyCount "66"]
[EventDate "2023.12.02"]
[EventType "swiss"]
[EventCountry "ESP"]
[SourceTitle "playchess.com"]
[Source "ChessBase"]
[SourceQuality "1"]
[TimeControl "5400+30"]

1. c4 {[%emt 0:01:58]} d6 {[%emt 0:02:02]} 2. Nc3 {[%emt 0:01:45]} e5 {[%emt 0:02:01]} 3. g3 {[%emt 0:01:30]} Nf6 {[%emt 0:00:24]} 4. Bg2 {[%emt 0:00:38]} g6 {[%emt 0:00:42]} 5. e4 {[%emt 0:03:07]} Bg7 {[%emt 0:01:12]} 6. Nge2 {[%emt 0:00:38]} O-O {[%emt 0:03:08]} 7. O-O {[%emt 0:00:52]} c6 {[%emt 0:04:33]} 8. d3 {[%emt 0:00:31]} a6 {[%emt 0:01:51]} 9. a4 {[%emt 0:00:17]} a5 {[%emt 0:00:31]} 10. h3 {[%emt 0:00:16]} Na6 {[%emt 0:03:19]} 11. f4 {[%emt 0:00:21]} Nd7 {[%emt 0:04:43]} 12. f5 {[%emt 0:03:40]} Nb4 {[%emt 0:02:08]} 13. g4 {[%emt 0:04:03]} Nc5 {[%emt 0:02:36]} 14. Rf3 {[%emt 0:00:55]} Bf6 {[%emt 0:10:19]} 15. Bh6 {[%emt 0:06:23]} Re8 {[%emt 0:01:46]} 16. Na2 {[%emt 0:13:35]} Bg5 {[%emt 0:04:02]} 17. Bxg5 {[%emt 0:03:53]} Qxg5 {[%emt 0:00:05]} 18. b3 {[%emt 0:06:37]} b6 {[%emt 0:14:39]} 19. Nxb4 {[%emt 0:10:00]} axb4 {[%emt 0:00:05]} 20. Ng3 {[%emt 0:11:42]} Bb7 {[%emt 0:04:53]} 21. d4 {[%emt 0:02:21]} Nd7 {[%emt 0:07:00]} 22. d5 {[%emt 0:06:51]} cxd5 {[%emt 0:00:18]} 23. cxd5 {[%emt 0:00:47]} Rec8 {[%emt 0:00:58]} 24. Qe1 {[%emt 0:02:36]} Rc3 {[%emt 0:04:28]} 25. Rxc3 {[%emt 0:01:53]} bxc3 {[%emt 0:00:03]} 26. Bf1 {[%emt 0:03:48]} Rc8 {[%emt 0:04:20]} 27. Bc4 {[%emt 0:00:57]} Nf6 {[%emt 0:04:09]} 28. Kh2 {[%emt 0:02:49]} Qf4 {[%emt 0:04:16]} 29. Ra2 {[%emt 0:00:11]} Ba6 {[%emt 0:05:07]} 30. Rf2 {[%emt 0:00:59]} Bxc4 {[%emt 0:01:03]} 31. bxc4 {[%emt 0:00:45]} Qh6 {[%emt 0:01:57]} 32. Kg2 {[%emt 0:00:58]} Rxc4 {[%emt 0:00:33]} 33. Qf1 {[%emt 0:08:46]} c2 {[%emt 0:00:50]} 0-1

[Event "XX Gran Hotel Bali-A 2023"]
[Site "Benidorm"]
[Date "2023.12.04"]
[Round "4.10"]
[White "Munoz Avila, Jose Luis"]
[Black "Ishvi Aggarwal"]
[Result "1-0"]
[ECO "C44"]
[WhiteElo "2238"]
[BlackElo "1765"]
[Annotator "RC"]
[PlyCount "77"]
[EventDate "2023.12.02"]
[EventType "swiss"]
[EventCountry "ESP"]
[SourceTitle "playchess.com"]
[Source "ChessBase"]
[SourceQuality "1"]
[TimeControl "5400+30"]

1. e4 {[%emt 0:00:03]} e5 {[%emt 0:06:38]} 2. Nf3 {[%emt 0:00:06]} Nc6 {[%emt 0:00:02]} 3. d3 {[%emt 0:00:06]} Nf6 {[%emt 0:00:33]} 4. Be2 {[%emt 0:00:06]} Bc5 {[%emt 0:00:36]} 5. O-O {[%emt 0:00:07]} d6 {[%emt 0:00:10]} 6. c3 {[%emt 0:00:05]} Bb6 {[%emt 0:00:30]} 7. Nbd2 {[%emt 0:00:43]} O-O {[%emt 0:00:09]} 8. a4 {[%emt 0:03:28]} d5 {[%emt 0:09:09]} 9. b4 {[%emt 0:12:59]} d4 {[%emt 0:22:17]} 10. b5 {[%emt 0:12:51]} dxc3 {[%emt 0:01:27]} 11. bxc6 {[%emt 0:01:32]} cxd2 {[%emt 0:00:03]} 12. Bxd2 {[%emt 0:02:06]} Bd4 {[%emt 0:08:50]} 13. Nxd4 {[%emt 0:06:34]} Qxd4 {[%emt 0:00:02]} 14. cxb7 {[%emt 0:03:05]} Bxb7 {[%emt 0:00:01]} 15. Rc1 {[%emt 0:01:03]} Ba6 {[%emt 0:07:53]} 16. Be3 {[%emt 0:01:56]} Qd7 {[%emt 0:04:25]} 17. Qc2 {[%emt 0:01:19]} Rfd8 {[%emt 0:01:29]} 18. Rfd1 {[%emt 0:01:55]} h6 {[%emt 0:11:10]} 19. f3 {[%emt 0:22:59]} Ne8 {[%emt 0:05:26]} 20. Qc3 {[%emt 0:04:16]} Qe6 {[%emt 0:04:19]} 21. Qa5 {[%emt 0:01:34]} Rd7 {[%emt 0:04:31]} 22. Rc3 {[%emt 0:11:16]} Rad8 {[%emt 0:09:13]} 23. Bf1 {[%emt 0:01:19]} Bc8 {[%emt 0:01:26]} 24. Qxa7 {[%emt 0:01:36]} Rd6 {[%emt 0:00:59]} 25. Qc5 {[%emt 0:01:41]} Bb7 {[%emt 0:00:50]} 26. Qb4 {[%emt 0:05:27]} Bc6 {[%emt 0:00:34]} 27. a5 {[%emt 0:00:25]} Ra8 {[%emt 0:00:40]} 28. Rc5 {[%emt 0:01:13]} Rdd8 {[%emt 0:00:31]} 29. Qc3 {[%emt 0:00:36]} Bd7 {[%emt 0:00:31]} 30. Rxe5 {[%emt 0:00:15]} Qg6 {[%emt 0:00:20]} 31. d4 {[%emt 0:01:10]} Rdb8 {[%emt 0:00:39]} 32. Rc5 {[%emt 0:00:51]} Ra7 {[%emt 0:00:32]} 33. d5 {[%emt 0:01:01]} Rba8 {[%emt 0:00:07]} 34. Ra1 {[%emt 0:00:07]} h5 {[%emt 0:00:54]} 35. Bf2 {[%emt 0:01:14]} Qg5 {[%emt 0:00:29]} 36. d6 {[%emt 0:00:22]} Qd8 {[%emt 0:00:14]} 37. Rxh5 {[%emt 0:00:25]} Nxd6 {[%emt 0:00:50]} 38. Bxa7 {[%emt 0:00:27]} Rxa7 {[%emt 0:00:01]} 39. Qd4 {[%emt 0:00:11]} 1-0

[Event "XX Gran Hotel Bali-A 2023"]
[Site "Benidorm"]
[Date "2023.12.04"]
[Round "4.11"]
[White "Robledo Sanchez, Carlos"]
[Black "Vignesh B"]
[Result "0-1"]
[ECO "A27"]
[WhiteElo "2117"]
[BlackElo "2140"]
[Annotator "NA RC"]
[PlyCount "54"]
[EventDate "2023.12.02"]
[EventType "swiss"]
[EventCountry "ESP"]
[SourceTitle "playchess.com"]
[Source "ChessBase"]
[SourceQuality "1"]
[TimeControl "5400+30"]

1. c4 {[%emt 0:00:01]} g6 {[%emt 0:04:51]} 2. Nc3 {[%emt 0:00:16]} Bg7 {[%emt 0:00:03]} 3. g3 {[%emt 0:00:14]} e5 {[%emt 0:02:23]} 4. Bg2 {[%emt 0:00:21]} Ne7 {[%emt 0:00:07]} 5. Nf3 {[%emt 0:08:57]} O-O {[%emt 0:02:51]} 6. d4 {[%emt 0:03:59]} exd4 {[%emt 0:00:07]} 7. Nxd4 {[%emt 0:00:05]} Nbc6 {[%emt 0:00:05]} 8. Nxc6 {[%emt 0:02:53]} bxc6 {[%emt 0:00:12]} 9. O-O {[%emt 0:00:30]} Rb8 {[%emt 0:01:09]} 10. Qc2 {[%emt 0:12:35]} Nf5 {[%emt 0:02:17]} 11. Rd1 {[%emt 0:06:08]} Re8 {[%emt 0:00:02]} 12. e3 {[%emt 0:02:10]} Qf6 {[%emt 0:01:04]} 13. Bd2 {[%emt 0:03:09]} h5 {[%emt 0:00:09]} 14. Rab1 {[%emt 0:06:41]} Qe7 {[%emt 0:06:59]} 15. Ne4 {[%emt 0:50:01]} d5 {[%emt 0:00:17]} 16. cxd5 {[%emt 0:00:00]} cxd5 {[%emt 0:00:22]} 17. Nc5 {[%emt 0:00:00]} c6 {[%emt 0:30:57]} 18. Nb3 {[%emt 0:00:00]} Bd7 {[%emt 0:08:18]} 19. Rbc1 {[%emt 0:00:00]} h4 {[%emt 0:00:40]} 20. Re1 {[%emt 0:00:00]} Nd6 {[%emt 0:03:53]} 21. Bc3 {[%emt 0:00:00]} Bxc3 {[%emt 0:06:00]} 22. Qxc3 {[%emt 0:00:00]} h3 {[%emt 0:00:07]} 23. Bf3 {[%emt 0:00:00]} Ne4 {[%emt 0:00:59]} 24. Qc2 {[%emt 0:00:00]} Qf6 {[%emt 0:01:52]} 25. Qe2 {[%emt 0:00:00]} Ng5 {[%emt 0:05:10]} 26. Bh1 {[%emt 0:00:00]} Rb4 {[%emt 0:00:12]} 27. Nc5 {[%emt 0:00:00]} Bg4 {[%emt 0:00:07]} 0-1

[Event "XX Gran Hotel Bali-A 2023"]
[Site "Benidorm"]
[Date "2023.12.04"]
[Round "5.1"]
[White "Grigoryan, Karen H."]
[Black "Korneev Leskova, Svyatoslav"]
[Result "1-0"]
[ECO "C18"]
[WhiteElo "2646"]
[BlackElo "2252"]
[Annotator "TA"]
[PlyCount "89"]
[EventDate "2023.12.02"]
[EventType "swiss"]
[EventCountry "ESP"]
[SourceTitle "playchess.com"]
[Source "ChessBase"]
[SourceQuality "1"]
[TimeControl "5400+30"]

{[%evp 16,89,45,5,37,28,62,62,62,62,69,69,69,62,69,58,58,58,58,58,70,58,63,58,58,60,71,71,71,71,71,78,75,83,123,113,104,91,91,91,114,112,154,132,170,170,198,186,208,200,265,272,257,257,309,289,264,265,457,429,533,492,544,529,550,518,548,548,830,836,848,844,1919,1817,29996,29997]} 1. e4 {[%emt 0:03:48]} e6 {[%emt 0:00:21]} 2. d4 {[%emt 0:00:10]} d5 {[%emt 0:00:04]} 3. Nc3 {[%emt 0:00:05]} Bb4 {[%emt 0:00:05]} 4. e5 {[%emt 0:00:30]} c5 {[%emt 0:00:06]} 5. a3 {[%emt 0:00:05]} Bxc3+ {[%emt 0:00:05]} 6. bxc3 {[%emt 0:00:04]} Qa5 {[%emt 0:00:08]} 7. Bd2 {[%emt 0:00:33]} Qa4 {[%emt 0:00:05]} 8. Qg4 {[%emt 0:00:15]} g6 {[%emt 0:01:17]} 9. Qd1 {[%emt 0:01:22]} Nc6 {[%emt 0:03:41] seems to push 9...b6 aside. C18: French: 3 Nc3 Bb4: Main line: 7 h4 and 7 Qg4.} 10. Nf3 {[%emt 0:00:48]} c4 {[%emt 0:00:21]} 11. h4 {[%emt 0:01:38]} h6 {[%emt 0:00:21] White is slightly better.} 12. g3 {[%emt 0:06:14]} Bd7 {[%emt 0:02:47]} 13. Bg2 {[%emt 0:01:18]} O-O-O {[%emt 0:01:32]} 14. O-O {[%emt 0:00:19] [#]} Rh7 $146 {[%emt 0:06:19]} ({Predecessor:} 14... f5 15. exf6 Nxf6 16. Qc1 Ne4 17. Re1 Qa5 18. a4 Rh7 19. Ra3 Rdh8 20. Bf4 Qd8 {0-1 Di Berardino,D (2342)-Rodriguez Vila,A (2502) Vitoria Espirito Sancto 1st 2006 (8)}) 15. Re1 {[%emt 0:02:21]} Nge7 {[%emt 0:00:27]} 16. Nh2 {[%emt 0:00:51]} Rdh8 {[%emt 0:00:50]} 17. Ng4 {[%emt 0:02:49]} Ng8 {[%emt 0:00:17]} 18. Ra2 {[%emt 0:01:12] Black is weak on the dark squares} Kb8 {[%emt 0:08:55]} 19. Bf4 {[%emt 0:02:55]} Ka8 {[%emt 0:00:45]} 20. Qd2 {[%emt 0:00:15]} Nce7 {[%emt 0:04:07]} 21. Rb1 {[%emt 0:01:20]} Bc6 {[%emt 0:05:30]} 22. Rb4 {[%emt 0:01:23] White is more active.} Qa5 {[%emt 0:01:34]} 23. a4 {[%emt 0:00:38]} g5 {[%emt 0:00:15]} 24. hxg5 {[%emt 0:00:26]} h5 {[%emt 0:00:04]} 25. Nf6 {[%emt 0:07:08]} Nxf6 {[%emt 0:00:26]} 26. exf6 {[%emt 0:00:38]} (26. gxf6 {simplifies} Ng6 27. Bh3 Nxf4 28. gxf4 Rh6 29. Kh2) 26... Ng6 {[%emt 0:00:08]} 27. Kh2 $36 {[%emt 0:07:05][%mdl 2048] Keeping Black busy.} h4 {[%emt 0:02:01][%cal Oe6e5] [#] aiming for ...e5!} 28. g4 $1 {[%emt 0:00:21]} h3 {[%emt 0:01:19]} 29. Bh1 {[%emt 0:01:54]} Qd8 {[%emt 0:24:06]} 30. Bg3 {[%emt 0:07:29]} Rh4 {[%emt 0:02:29]} 31. Qe2 {[%emt 0:02:02]} R4h7 {[%emt 0:03:26]} 32. a5 {[%emt 0:03:15][%cal Ba4a5,Ba5a6][%mdl 32]} Qd7 {[%emt 0:01:53]} 33. a6 {[%emt 0:02:43] And now axb7+ would win.} b6 {[%emt 0:00:43]} 34. f4 {[%emt 0:01:34]} Nh4 {[%emt 0:02:49]} 35. Bxh4 {[%emt 0:02:15]} (35. Kxh3 $2 {perishes.} Nf5+ 36. Kg2 Nxg3 37. Kxg3 Rxh1 $19) 35... Rxh4 {[%emt 0:00:05]} 36. Bf3 {[%emt 0:00:19]} b5 $2 {[%emt 0:05:16]} (36... Qc7) 37. Qe5 $18 {[%emt 0:02:42]} Re8 {[%emt 0:01:49]} 38. Rb1 {[%emt 0:01:36]} Rhh8 {[%emt 0:00:28]} 39. Re1 {[%emt 0:00:38]} Reg8 {[%emt 0:01:59]} 40. Raa1 {[%emt 0:00:20]} Qd8 {[%emt 0:03:25]} 41. Rh1 {[%emt 0:03:35]} Qd7 {[%emt 0:03:26]} 42. Kg3 {[%emt 0:00:45]} b4 {[%emt 0:02:11]} 43. cxb4 {[%emt 0:00:29]} Ba4 {[%emt 0:01:35] [#]} 44. Rxa4 $1 {[%emt 0:00:43]} Qxa4 {[%emt 0:00:06] [#]} (44... Rd8 45. Raa1) 45. Bxd5+ $1 {[%emt 0:00:06][%mdl 512] Excellently played by Grigoryan!   Weighted Error Value: White=0.07 (flawless) /Black=0.45} 1-0